bitfinex-derivatives/quotes_BTCF0:USTF0_20210404
["timestamp","ask_amount","ask_price","bid_price","bid_amount"]
[1617553988340,0.36137468,57926.0,57925.0,0.27]
[1617553988538,0.36137468,57926.0,57922.0,0.36318125]
[1617553988741,0.66248686,57926.0,57921.0,0.36317924]
[1617553988941,0.66248686,57926.0,57925.0,0.27]
[1617553989141,0.36137468,57926.0,57921.0,0.36317924]
[1617553989540,0.36137468,57926.0,57924.0,0.27]
[1617553989741,0.24737655,57925.0,57922.0,0.27]
[1617553989942,0.24737655,57925.0,57921.0,0.36317924]
[1617553990141,0.79179481,57925.0,57921.0,0.36317924]
[1617553990342,0.79179481,57925.0,57922.0,0.27]
[1617553990543,0.30115708,57923.0,57922.0,0.27]
[1617553990946,0.30115708,57923.0,57922.0,0.33082713]
[1617553992248,0.30115708,57923.0,57922.0,0.69400195]
[1617553992748,0.30115708,57923.0,57922.0,0.33082713]
[1617553993349,0.30123605,57924.0,57922.0,0.69400119]
[1617553993652,0.30123605,57924.0,57923.0,0.06082677]
[1617553994050,0.40856363,57925.0,57923.0,0.69399191]
[1617553994450,0.11740214,57925.0,57924.0,0.42398977]
[1617553994850,0.11740214,57925.0,57924.0,0.69398977]
[1617553995050,0.11740214,57925.0,57924.0,1.84513977]
[1617553995451,0.10725655,57925.0,57924.0,2.04513977]
[1617553995852,0.10725655,57925.0,57924.0,2.38023181]
[1617553996050,0.10725655,57925.0,57924.0,1.38023181]
[1617553996253,0.10725655,57925.0,57924.0,0.84513977]
[1617553996553,0.11744394,57925.0,57924.0,1.28946255]
[1617553997053,0.10725655,57925.0,57924.0,1.28946255]
[1617553997453,0.1174441,57925.0,57924.0,1.28946255]
[1617553997652,0.1174441,57925.0,57924.0,2.28946255]
[1617553997653,0.01018755,57925.0,57924.0,2.28946255]
[1617553997853,0.01019556,57927.0,57924.0,2.28946255]
[1617553998253,0.01019852,57928.0,57926.0,0.80783004]
[1617553998654,0.01019852,57928.0,57927.0,1.27]
[1617553998855,0.01019857,57929.0,57927.0,1.27]
[1617553999054,0.01019857,57929.0,57927.0,4.0867]
[1617553999256,0.30302535,57929.0,57928.0,1.86863833]
[1617553999456,0.30302535,57929.0,57928.0,0.86863833]
[1617553999657,0.01019047,57929.0,57928.0,0.69433903]
[1617553999857,0.01019047,57929.0,57928.0,0.80159558]
[1617554000058,0.01018263,57930.0,57928.0,0.80159558]
[1617554000458,0.302788,57931.0,57929.0,1.5]
[1617554000658,0.302788,57931.0,57930.0,3.6309]
[1617554000859,0.01017133,57932.0,57930.0,4.325071]
[1617554001058,0.01017133,57932.0,57930.0,5.325071]
[1617554001260,0.01017133,57932.0,57931.0,1.0]
[1617554001661,0.01017133,57932.0,57931.0,1.27]
[1617554001860,0.01017133,57932.0,57931.0,1.69416318]
[1617554002261,0.01017563,57934.0,57931.0,2.13823779]
[1617554002661,0.01017563,57934.0,57933.0,1.0]
[1617554002861,0.01017563,57934.0,57933.0,1.36333505]
[1617554003062,0.01017563,57934.0,57933.0,0.63333505]
[1617554003262,0.30211866,57934.0,57933.0,0.69415365]
[1617554003460,3.2026,57935.0,57933.0,0.69415365]
[1617554003662,1.07130038,57934.0,57933.0,0.27]
[1617554003860,1.17855693,57934.0,57933.0,0.27]
[1617554004061,1.17855693,57934.0,57930.0,0.27]
[1617554004262,0.87667958,57934.0,57930.0,0.27]
[1617554004461,0.27115655,57934.0,57933.0,0.27]
[1617554004661,0.27115655,57934.0,57929.0,0.27]
[1617554004861,0.93469851,57934.0,57929.0,0.27]
[1617554005061,0.93469851,57934.0,57933.0,0.27]
[1617554005262,0.27115655,57934.0,57929.0,0.63336327]
[1617554005661,0.93492121,57934.0,57933.0,0.27]
[1617554005861,0.93492121,57934.0,57930.0,0.27]
[1617554006661,0.66462789,57931.0,57930.0,0.27]
[1617554007463,0.66462789,57931.0,57929.0,0.37367454]
[1617554007863,0.44357158,57932.0,57930.0,0.27]
[1617554008064,0.44357158,57932.0,57930.0,1.0]
[1617554008264,0.35055214,57934.0,57927.0,0.27623655]
[1617554008265,0.35055214,57934.0,57931.0,1.0]
[1617554008464,0.35055214,57934.0,57933.0,2.6142]
[1617554008664,0.35055214,57934.0,57933.0,3.6142]
[1617554008866,0.44382193,57937.0,57933.0,3.6142]
[1617554009066,0.44382193,57937.0,57933.0,3.8842]
[1617554009266,0.30268669,57934.0,57933.0,2.8842]
[1617554009864,0.30268669,57934.0,57933.0,3.8842]
[1617554010065,0.30268669,57934.0,57933.0,3.99145655]
[1617554010266,0.30268669,57934.0,57933.0,2.99145655]
[1617554012868,0.30268669,57934.0,57933.0,4.49145655]
[1617554013069,0.30268669,57934.0,57933.0,5.49145655]
[1617554013369,0.00513828,57935.0,57933.0,5.93579373]
[1617554013769,0.00513784,57934.0,57933.0,4.93579373]
[1617554014168,0.00513784,57934.0,57933.0,5.93579373]
[1617554014369,0.00513784,57934.0,57933.0,5.49145655]
[1617554014771,0.01017704,57934.0,57933.0,5.93579575]
[1617554015170,0.00513974,57934.0,57933.0,5.93579575]
[1617554015569,0.30243845,57936.0,57933.0,5.93579575]
[1617554015570,0.00514805,57936.0,57933.0,6.13579575]
[1617554016071,0.00514991,57939.0,57935.0,2.64906356]
[1617554016271,0.00514991,57939.0,57935.0,3.64906356]
[1617554016472,0.00514991,57939.0,57936.0,0.27]
[1617554016673,0.00514958,57940.0,57938.0,1.44417331]
[1617554017076,0.30301736,57942.0,57939.0,1.43848]
[1617554017077,0.00514958,57942.0,57939.0,1.43848]
[1617554017373,0.00514956,57943.0,57941.0,0.44380484]
[1617554017772,0.00514956,57943.0,57942.0,4.6555]
[1617554017974,0.01020628,57943.0,57942.0,5.20696572]
[1617554018275,0.00515359,57943.0,57942.0,5.29817629]
[1617554018876,0.01020607,57943.0,57942.0,5.29817629]
[1617554019679,0.30325338,57943.0,57942.0,5.29817629]
[1617554020077,0.30325548,57944.0,57942.0,5.29817629]
[1617554020488,0.30325548,57944.0,57943.0,0.53501895]
[1617554020878,0.30324821,57945.0,57943.0,1.80501895]
[1617554021277,0.01020591,57944.0,57943.0,0.36120915]
[1617554021685,0.01020591,57944.0,57943.0,1.36120915]
[1617554021888,0.005141,57948.0,57943.0,1.80353314]
[1617554022287,0.005141,57948.0,57947.0,1.0]
[1617554022680,0.005141,57949.0,57947.0,1.27]
[1617554023181,0.005141,57949.0,57948.0,1.0]
[1617554023592,0.11239746,57950.0,57948.0,1.33080453]
[1617554023985,0.11239746,57950.0,57949.0,1.10725655]
[1617554024383,0.10725655,57950.0,57949.0,1.43805942]
[1617554024583,0.10725655,57950.0,57949.0,0.43805942]
[1617554025288,0.11239743,57950.0,57949.0,0.43805942]
[1617554025886,0.11239743,57950.0,57949.0,1.43805942]
[1617554026087,0.11743758,57950.0,57949.0,1.43805942]
[1617554026587,0.11743758,57950.0,57949.0,1.37725655]
[1617554026588,0.40977224,57950.0,57949.0,1.37725655]
[1617554027390,0.1174377,57950.0,57949.0,1.37725655]
[1617554028690,0.40983498,57950.0,57949.0,1.37725655]
[1617554029090,0.10725655,57950.0,57949.0,1.37725655]
[1617554029992,0.11743984,57950.0,57949.0,1.37725655]
[1617554030392,0.11239856,57950.0,57949.0,1.37725655]
[1617554031092,0.11239856,57950.0,57949.0,0.37725655]
[1617554031493,0.11239856,57950.0,57949.0,1.37725655]
[1617554031694,0.11743977,57950.0,57949.0,1.37725655]
[1617554032500,2.96483977,57950.0,57949.0,1.37725655]
[1617554032898,2.95465655,57950.0,57949.0,1.37725655]
[1617554033398,2.96483361,57950.0,57949.0,1.37725655]
[1617554034699,2.95465655,57950.0,57949.0,1.37725655]
[1617554035201,3.25704642,57950.0,57949.0,1.37725655]
[1617554035399,0.40964642,57950.0,57949.0,1.37725655]
[1617554035799,0.11743357,57950.0,57949.0,1.37725655]
[1617554036201,0.11239543,57950.0,57949.0,1.37725655]
[1617554036400,0.11239543,57950.0,57949.0,4.99045655]
[1617554037001,0.10725655,57950.0,57949.0,4.99045655]
[1617554037703,0.11743348,57950.0,57949.0,4.99045655]
[1617554038202,0.10725655,57950.0,57949.0,4.99045655]
[1617554038605,0.11239539,57950.0,57949.0,4.99045655]
[1617554039404,0.10725655,57950.0,57949.0,4.99045655]
[1617554039604,0.10725655,57950.0,57949.0,3.99045655]
[1617554039805,0.10725655,57950.0,57949.0,4.99045655]
[1617554040207,0.10725655,57950.0,57949.0,3.99045655]
[1617554040406,0.10725655,57950.0,57949.0,4.99045655]
[1617554042610,0.1123934,57950.0,57949.0,4.99045655]
[1617554043412,0.10725655,57950.0,57949.0,4.99045655]
[1617554048021,0.11239829,57950.0,57949.0,5.35182068]
[1617554048520,0.10725655,57950.0,57949.0,5.35182068]
[1617554049320,0.10725655,57950.0,57949.0,4.35182068]
[1617554049721,0.10725655,57950.0,57949.0,5.35182068]
[1617554051323,0.10725655,57950.0,57949.0,4.35182068]
[1617554051526,0.11239772,57950.0,57949.0,5.35182068]
[1617554053125,0.10725655,57950.0,57949.0,5.35182068]
[1617554054427,0.11239772,57950.0,57949.0,5.35182068]
[1617554054629,0.11239772,57950.0,57949.0,4.35182068]
[1617554054828,0.11239772,57950.0,57949.0,5.35182068]
[1617554055034,0.10725655,57950.0,57949.0,5.35182068]
[1617554055630,0.10725655,57950.0,57949.0,4.35182068]
[1617554055831,0.10725655,57950.0,57949.0,5.35182068]
[1617554056033,0.11239771,57950.0,57949.0,5.35182068]
[1617554057533,0.10725655,57950.0,57949.0,5.35182068]
[1617554060639,0.10725655,57950.0,57949.0,5.79474861]
[1617554061541,0.11240202,57950.0,57949.0,5.79474861]
[1617554061940,0.10725655,57950.0,57949.0,5.79474861]
[1617554062139,0.10725655,57950.0,57949.0,4.79474861]
[1617554062339,0.11240195,57950.0,57949.0,4.79474861]
[1617554062840,0.11240195,57950.0,57949.0,4.35182068]
[1617554063040,0.11744656,57950.0,57949.0,4.35182068]
[1617554063539,0.10725655,57950.0,57949.0,4.35182068]
[1617554063740,0.10725655,57950.0,57949.0,0.73862068]
[1617554063943,0.11744659,57950.0,57949.0,0.73862068]
[1617554064150,0.22288659,57950.0,57949.0,0.73862068]
[1617554064543,0.21269655,57950.0,57949.0,0.73862068]
[1617554064842,0.51547773,57950.0,57949.0,0.73862068]
[1617554065042,0.51547773,57950.0,57949.0,0.63136413]
[1617554065242,4.31472849,57950.0,57949.0,0.27]
[1617554065643,4.31472849,57950.0,57948.0,0.36304883]
[1617554065844,4.75872615,57950.0,57943.0,0.3632665]
[1617554066045,4.75872615,57950.0,57949.0,0.27]
[1617554066246,1.352539,57949.0,57944.0,0.01]
[1617554066649,1.352539,57949.0,57940.0,0.27]
[1617554066650,1.10929431,57945.0,57940.0,0.27]
[1617554067047,0.66570502,57941.0,57939.0,0.36327691]
[1617554067246,0.66570502,57941.0,57939.0,0.63327691]
[1617554067447,0.71740502,57941.0,57939.0,0.36327691]
[1617554067648,0.36320307,57942.0,57940.0,0.3632701]
[1617554067848,0.36320307,57942.0,57940.0,0.6332701]
[1617554068050,0.36310449,57941.0,57940.0,0.27]
[1617554068248,0.47036104,57941.0,57940.0,0.27]
[1617554068448,0.47036104,57941.0,57939.0,0.36328117]
[1617554068849,0.47036104,57941.0,57931.0,0.10725655]
[1617554068850,0.10725655,57941.0,57940.0,0.27]
[1617554069251,0.10725655,57941.0,57937.0,0.36328655]
[1617554069252,0.47036783,57941.0,57937.0,0.36328655]
[1617554069651,0.10725655,57941.0,57939.0,0.27]
[1617554069850,0.10725655,57941.0,57937.0,0.36328655]
[1617554069851,0.10725655,57941.0,57938.0,0.27]
[1617554070051,0.36307164,57940.0,57938.0,0.27]
[1617554070251,0.36307164,57940.0,57937.0,0.36328655]
[1617554070451,0.10725655,57941.0,57938.0,0.44541938]
[1617554070452,0.80931984,57939.0,57938.0,0.44541938]
[1617554070651,0.80931984,57939.0,57938.0,0.71541938]
[1617554070851,0.80931984,57939.0,57938.0,0.80985299]
[1617554071253,0.36420404,57939.0,57938.0,0.27]
[1617554071653,0.36420404,57939.0,57937.0,0.36350002]
[1617554071955,0.36420404,57939.0,57938.0,0.27]
[1617554072151,0.55112076,57941.0,57938.0,0.27]
[1617554072552,0.36316134,57939.0,57938.0,0.27]
[1617554073354,0.36316134,57939.0,57938.0,0.63349727]
[1617554073753,0.36316134,57939.0,57933.0,0.44427483]
[1617554073754,0.36316134,57939.0,57937.0,0.36350092]
[1617554074154,0.36316134,57939.0,57938.0,0.27]
[1617554074355,0.36316134,57939.0,57937.0,0.36350092]
[1617554074755,0.36316134,57939.0,57938.0,0.27]
[1617554074957,0.10725655,57941.0,57938.0,0.63349654]
[1617554075356,0.10725655,57941.0,57938.0,0.36349654]
[1617554075756,0.10725655,57941.0,57939.0,0.27]
[1617554076257,0.36341249,57940.0,57939.0,0.63349025]
[1617554076457,0.36341249,57940.0,57939.0,0.7407468]
[1617554076658,0.36341249,57940.0,57939.0,0.4707468]
[1617554077061,0.36341249,57940.0,57939.0,0.7407468]
[1617554077461,0.47083133,57941.0,57939.0,0.7407468]
[1617554078061,0.36353081,57940.0,57939.0,0.7407468]
[1617554078260,0.36353081,57940.0,57939.0,0.63349025]
[1617554078862,0.47083531,57941.0,57939.0,0.63349025]
[1617554079263,0.10725655,57941.0,57940.0,0.36340999]
[1617554079663,0.10725655,57941.0,57940.0,0.63340999]
[1617554080663,0.10725655,57941.0,57940.0,0.77574999]
[1617554084369,0.10725655,57941.0,57940.0,4.20054999]
[1617554084971,0.10725655,57941.0,57940.0,0.63340999]
[1617554085477,0.10725655,57941.0,57940.0,0.27]
[1617554085669,0.10725655,57941.0,57940.0,0.3795]
[1617554085888,0.10725655,57941.0,57940.0,1.1095]
[1617554086089,0.11745055,57941.0,57940.0,1.91668356]
[1617554086310,0.11745055,57941.0,57940.0,4.74768356]
[1617554086490,0.10725655,57941.0,57940.0,5.05494011]
[1617554086690,0.10725655,57941.0,57940.0,4.85494011]
[1617554086891,0.10725655,57941.0,57940.0,4.94614499]
[1617554088269,0.10725655,57941.0,57940.0,5.14614499]
[1617554089470,0.10725655,57941.0,57940.0,4.94614499]
[1617554090473,0.10725655,57941.0,57940.0,5.45005666]
[1617554090876,0.10725655,57941.0,57940.0,4.94614499]
[1617554093881,0.10725655,57941.0,57940.0,3.94614499]
[1617554094082,0.10725655,57941.0,57940.0,4.94614499]
[1617554095184,0.10725655,57941.0,57940.0,2.38514499]
[1617554095383,2.88889655,57941.0,57940.0,1.16838844]
[1617554095783,2.88889655,57941.0,57940.0,0.6332326]
[1617554095784,3.25237432,57941.0,57940.0,0.6332326]
[1617554096383,5.75237432,57941.0,57940.0,0.27]
[1617554096584,3.12507432,57941.0,57940.0,0.27]
[1617554096784,4.07429737,57941.0,57938.0,0.01]
[1617554096985,3.7062,57939.0,57938.0,0.01]
[1617554097185,3.7062,57939.0,57924.0,0.36263139]
[1617554097186,7.51906139,57939.0,57924.0,0.36263139]
[1617554097585,6.57056139,57939.0,57930.0,0.27]
[1617554097787,0.50495177,57932.0,57930.0,0.27]
[1617554097984,0.55605177,57932.0,57921.0,0.81725563]
[1617554098185,2.11097376,57931.0,57922.0,0.27]
[1617554098584,0.79927143,57922.0,57921.0,0.81725563]
[1617554098784,0.79927143,57922.0,57921.0,0.36285563]
[1617554098985,0.79927143,57922.0,57921.0,0.63285563]
[1617554099186,1.04257357,57922.0,57921.0,0.63285563]
[1617554100386,2.04257357,57922.0,57921.0,0.63285563]
[1617554100584,5.56907357,57922.0,57921.0,0.63285563]
[1617554100786,4.56907357,57922.0,57921.0,0.27]
[1617554101186,4.56907357,57922.0,57920.0,0.01]
[1617554101386,5.01343779,57922.0,57920.0,0.01]
[1617554101586,5.01343779,57922.0,57921.0,0.27]
[1617554101787,4.10356422,57922.0,57918.0,0.01]
[1617554102187,4.7701664,57922.0,57921.0,0.27]
[1617554102387,4.7701664,57922.0,57918.0,0.27]
[1617554102588,4.7701664,57922.0,57918.0,0.63284948]
[1617554102589,0.60577263,57919.0,57918.0,0.63284948]
[1617554102789,0.60577263,57919.0,57918.0,0.36284948]
[1617554102992,0.3030094,57919.0,57918.0,0.62284948]
[1617554103389,0.01019747,57919.0,57918.0,0.62284948]
[1617554103789,0.0051492,57919.0,57918.0,1.06461213]
[1617554104388,0.1597792,57919.0,57918.0,1.06461213]
[1617554104589,0.1597792,57919.0,57918.0,1.17186868]
[1617554104989,0.16482751,57919.0,57918.0,0.73010603]
[1617554105390,0.15463,57919.0,57918.0,0.36725655]
[1617554107594,0.16480295,57919.0,57918.0,0.36725655]
[1617554108795,0.15463,57919.0,57918.0,0.36725655]
[1617554109597,0.00513683,57920.0,57918.0,0.36725655]
[1617554110597,0.00513626,57921.0,57918.0,0.36725655]
[1617554110900,0.0051363,57920.0,57918.0,0.36725655]
[1617554111098,0.1440763,57920.0,57918.0,0.36725655]
[1617554113609,0.01017214,57919.0,57918.0,0.36725655]
[1617554114006,0.1491121,57920.0,57918.0,0.36725655]
[1617554114308,0.01017207,57919.0,57918.0,0.36725655]
[1617554116009,0.14407042,57920.0,57918.0,0.36725655]
[1617554116310,0.14407042,57920.0,57918.0,0.26]
[1617554116510,0.13894,57920.0,57918.0,0.26]
[1617554116709,3.5674,57919.0,57906.0,0.27]
[1617554116911,3.86930129,57919.0,57906.0,0.27]
[1617554117110,3.86930129,57919.0,57902.0,0.43982081]
[1617554117312,0.00513086,57912.0,57902.0,0.01]
[1617554117512,0.00513086,57912.0,57907.0,0.27]
[1617554117712,0.00513086,57912.0,57897.0,0.44005206]
[1617554117912,0.00513086,57912.0,57903.0,0.01]
[1617554118112,0.00513086,57912.0,57908.0,0.27]
[1617554118312,0.00513086,57912.0,57898.0,0.27]
[1617554118511,0.00513086,57912.0,57904.0,0.01]
[1617554118712,0.00513086,57912.0,57909.0,0.27]
[1617554118913,0.00513086,57912.0,57899.0,0.27]
[1617554119113,0.00513086,57912.0,57905.0,0.01]
[1617554119312,0.00513086,57912.0,57910.0,0.26]
[1617554119514,0.00513101,57911.0,57900.0,0.26]
[1617554119912,0.00513101,57911.0,57906.0,0.01]
[1617554120113,0.00513101,57911.0,57898.0,0.27]
[1617554120114,0.0101615,57911.0,57898.0,0.27]
[1617554120313,0.0101615,57911.0,57897.0,0.26]
[1617554120514,0.0101615,57911.0,57891.0,0.10725655]
[1617554120515,0.00513106,57908.0,57907.0,0.01]
[1617554120714,0.27050761,57908.0,57898.0,0.26]
[1617554121114,0.27050761,57908.0,57907.0,0.27]
[1617554121314,0.27050761,57908.0,57896.0,0.01]
[1617554121517,0.27050761,57908.0,57899.0,0.25]
[1617554121715,0.27050761,57908.0,57896.0,0.44064071]
[1617554121914,0.27050761,57908.0,57900.0,0.06083642]
[1617554122114,0.27050761,57908.0,57900.0,0.32083642]
[1617554122314,0.27050761,57908.0,57900.0,0.06083642]
[1617554122514,0.27050761,57908.0,57898.0,0.0608362]
[1617554122714,0.27050761,57908.0,57901.0,0.27]
[1617554122914,0.16325106,57908.0,57901.0,0.33083617]
[1617554123115,0.16325106,57908.0,57901.0,0.06083617]
[1617554123315,0.16325106,57908.0,57896.0,0.71083897]
[1617554123316,0.15812,57908.0,57902.0,0.26]
[1617554123715,0.15812,57908.0,57902.0,0.06083603]
[1617554124118,0.16325463,57908.0,57898.0,0.32083619]
[1617554124315,0.16325463,57908.0,57903.0,0.27]
[1617554124516,0.16325463,57908.0,57899.0,0.06083613]
[1617554124718,0.16325463,57908.0,57899.0,0.32083613]
[1617554124917,0.16325463,57908.0,57891.0,0.10725655]
[1617554124918,0.10725655,57900.0,57897.0,0.71105481]
[1617554125317,0.10725655,57900.0,57897.0,0.44105481]
[1617554125518,0.10725655,57900.0,57893.0,0.07083639]
[1617554125519,0.10725655,57900.0,57898.0,0.06083633]
[1617554125717,0.10725655,57900.0,57898.0,0.33083633]
[1617554125917,0.10725655,57900.0,57896.0,0.44072555]
[1617554126319,0.10725655,57900.0,57897.0,0.27]
[1617554126918,0.10725655,57900.0,57895.0,0.06083648]
[1617554127118,0.10725655,57900.0,57898.0,0.06083635]
[1617554127318,0.10725655,57900.0,57896.0,0.27]
[1617554127518,0.10725655,57900.0,57899.0,0.01]
[1617554127719,0.10725655,57900.0,57898.0,0.35999159]
[1617554128120,0.10725655,57900.0,57899.0,0.01]
[1617554128721,0.10725655,57900.0,57884.0,1.0]
[1617554128722,0.10725655,57900.0,57898.0,0.27]
[1617554129021,0.10725655,57900.0,57899.0,0.27]
[1617554129422,0.10725655,57900.0,57896.0,0.27]
[1617554129623,0.10725655,57900.0,57893.0,0.36042197]
[1617554129824,0.10725655,57900.0,57899.0,0.01]
[1617554130023,0.10725655,57900.0,57895.0,0.27]
[1617554130223,0.10725655,57900.0,57894.0,0.27]
[1617554130425,0.10725655,57900.0,57899.0,0.01]
[1617554130623,0.10725655,57900.0,57896.0,0.26]
[1617554130824,0.10725655,57900.0,57895.0,0.27]
[1617554131024,0.10725655,57900.0,57899.0,0.01]
[1617554131225,0.10725655,57900.0,57893.0,0.25]
[1617554131426,0.10725655,57900.0,57896.0,0.27]
[1617554131625,0.10725655,57900.0,57899.0,0.03]
[1617554131828,0.10725655,57900.0,57892.0,0.25]
[1617554132026,0.10725655,57900.0,57897.0,0.26]
[1617554132226,1.10725655,57900.0,57897.0,0.26]
[1617554132425,1.10725655,57900.0,57892.0,0.27]
[1617554132628,1.10725655,57900.0,57898.0,0.27]
[1617554132827,1.5,57899.0,57898.0,0.27]
[1617554133026,1.5051251,57899.0,57893.0,0.1263]
[1617554133226,1.5051251,57899.0,57883.0,0.36082511]
[1617554133227,2.5051251,57899.0,57889.0,0.27]
[1617554133426,2.81072568,57894.0,57883.0,0.01]
[1617554133626,3.81072568,57894.0,57884.0,0.13]
[1617554133827,1.0,57890.0,57884.0,0.13]
[1617554134027,1.0,57890.0,57879.0,0.50120233]
[1617554134227,1.0,57890.0,57880.0,0.13]
[1617554134628,1.0,57890.0,57876.0,0.3617762]
[1617554134828,1.00512397,57890.0,57877.0,0.15]
[1617554135029,1.00512397,57890.0,57881.0,0.13]
[1617554135228,1.00512397,57890.0,57870.0,0.4422682]
[1617554135229,1.0,57886.0,57872.0,0.36186707]
[1617554135428,1.0,57883.0,57878.0,0.27]
[1617554135627,1.0,57883.0,57882.0,0.27]
[1617554135828,1.0,57883.0,57877.0,0.01]
[1617554136029,1.0,57883.0,57873.0,0.27]
[1617554136229,1.0,57883.0,57882.0,0.27]
[1617554136429,1.0,57883.0,57878.0,0.01]
[1617554136630,1.0,57883.0,57871.0,0.27]
[1617554136830,1.0,57883.0,57882.0,0.01]
[1617554137033,1.0,57883.0,57870.0,0.36187902]
[1617554137232,1.0,57883.0,57872.0,0.01]
[1617554137431,0.00511934,57885.0,57875.0,0.26]
[1617554137631,1.0,57883.0,57870.0,0.36187902]
[1617554137831,1.0,57883.0,57873.0,0.01]
[1617554138031,1.0,57883.0,57876.0,0.26]
[1617554138231,1.0,57883.0,57862.0,0.3604192]
[1617554138431,1.0,57883.0,57874.0,0.26]
[1617554138832,0.10725655,57875.0,57872.0,0.26]
[1617554139032,0.22197655,57875.0,57867.0,0.02]
[1617554139233,0.22197655,57875.0,57873.0,0.26]
[1617554139433,0.22197655,57875.0,57864.0,0.06087041]
[1617554139635,0.22197655,57875.0,57868.0,0.27]
[1617554139835,0.22197655,57875.0,57874.0,0.27]
[1617554140034,0.22197655,57875.0,57865.0,0.01]
[1617554140437,0.22197655,57875.0,57869.0,0.26]
[1617554140837,0.22197655,57875.0,57872.0,0.10725655]
[1617554141234,0.22197655,57875.0,57873.0,0.01]
[1617554145140,0.10725655,57875.0,57873.0,0.01]
[1617554146842,0.10725655,57875.0,57873.0,0.21]
[1617554150646,0.10725655,57875.0,57873.0,0.36914]
[1617554152149,0.10725655,57875.0,57874.0,2.7948]
[1617554152350,0.00510281,57900.0,57875.0,1.5]
[1617554152749,0.00510245,57904.0,57886.0,1.0]
[1617554152949,0.00510245,57904.0,57900.0,0.10725655]
[1617554153150,0.0051022,57907.0,57900.0,0.27212655]
[1617554153348,0.0051022,57907.0,57905.0,2.5413]
[1617554153550,0.00510209,57908.0,57905.0,2.5413]
[1617554153749,0.00510209,57908.0,57906.0,0.27]
[1617554154350,0.30126454,57907.0,57906.0,0.27]
[1617554154749,0.00511932,57907.0,57906.0,0.27]
[1617554154950,0.11237587,57907.0,57906.0,0.37725655]
[1617554155550,0.11237587,57907.0,57906.0,0.57725655]
[1617554155751,0.10725655,57907.0,57906.0,0.57725655]
[1617554158754,0.10725655,57907.0,57906.0,1.57725655]
[1617554161159,0.10725655,57907.0,57906.0,0.57725655]
[1617554161559,3.4662,57916.0,57906.0,1.57725655]
[1617554161760,0.00512189,57920.0,57906.0,1.57725655]
[1617554161961,0.00512175,57922.0,57911.0,1.0]
[1617554162161,0.00512175,57922.0,57918.0,3.4393]
[1617554162360,0.00512175,57922.0,57918.0,3.59055]
[1617554162560,0.00512175,57922.0,57919.0,0.01]
[1617554162761,0.00512151,57926.0,57921.0,3.3088]
[1617554162965,0.00512151,57926.0,57925.0,0.10725655]
[1617554163162,0.3013659,57928.0,57925.0,0.10725655]
[1617554163163,0.00512115,57928.0,57925.0,0.30725655]
[1617554163365,0.00512115,57928.0,57925.0,1.56725655]
[1617554163563,0.00512115,57928.0,57926.0,1.0]
[1617554163765,0.00512052,57938.0,57927.0,0.2]
[1617554163963,0.00512052,57938.0,57937.0,2.7003]
[1617554164165,0.00512028,57942.0,57937.0,1.341]
[1617554164364,2.5575,57938.0,57937.0,1.411]
[1617554164565,2.5575,57938.0,57937.0,0.411]
[1617554164966,2.5626204,57938.0,57937.0,0.51825655]
[1617554165165,2.5626204,57938.0,57937.0,0.37725655]
[1617554165768,2.5575,57938.0,57937.0,0.37725655]
[1617554167367,0.11236908,57943.0,57937.0,0.37725655]
[1617554167567,0.10725655,57943.0,57937.0,0.37725655]
[1617554167768,0.10725655,57943.0,57939.0,3.0128]
[1617554168172,0.10725655,57943.0,57940.0,0.27]
[1617554168571,0.0051124,57942.0,57940.0,0.27]
[1617554168971,0.11738111,57943.0,57940.0,0.27]
[1617554168972,0.11236895,57943.0,57940.0,0.27]
[1617554169479,0.11236895,57943.0,57940.0,0.43397]
[1617554169680,0.11236895,57943.0,57942.0,1.0]
[1617554169872,0.10725655,57943.0,57942.0,1.0]
[1617554170074,0.10725655,57943.0,57942.0,1.27]
[1617554170275,0.10725655,57943.0,57942.0,0.27]
[1617554170675,0.10725655,57943.0,57941.0,0.27]
[1617554171075,0.10725655,57943.0,57942.0,0.27]
[1617554171274,0.10725655,57943.0,57941.0,0.27]
[1617554171674,0.10725655,57943.0,57942.0,0.27]
[1617554171874,0.10725655,57943.0,57940.0,0.01]
[1617554172074,0.10725655,57943.0,57939.0,3.0128]
[1617554172474,0.10725655,57943.0,57940.0,0.27]
[1617554173075,0.10725655,57943.0,57940.0,0.42953]
[1617554174577,0.00511215,57947.0,57940.0,0.42953]
[1617554174776,0.00511215,57947.0,57946.0,2.6961]
[1617554174977,0.30081477,57949.0,57946.0,4.1961]
[1617554175177,0.36606955,57952.0,57946.0,4.1961]
[1617554175178,0.00511187,57952.0,57948.0,0.10725655]
[1617554175377,0.00511132,57957.0,57948.0,0.30725655]
[1617554175576,0.00511132,57957.0,57951.0,1.0]
[1617554175776,0.00511132,57957.0,57955.0,1.0]
[1617554175980,0.00510685,57961.0,57955.0,1.15577]
[1617554176176,0.00510685,57961.0,57956.0,0.01]
[1617554176779,0.00510677,57960.0,57956.0,0.01]
[1617554177178,0.00510677,57960.0,57959.0,0.10725655]
[1617554177578,0.01011362,57960.0,57959.0,0.37725655]
[1617554178179,0.00510677,57961.0,57959.0,0.37725655]
[1617554178481,0.00510677,57962.0,57959.0,0.37725655]
[1617554179179,0.10725655,57960.0,57959.0,0.37725655]
[1617554179578,0.10725655,57960.0,57959.0,0.57725655]
[1617554179980,0.10725655,57960.0,57959.0,1.57725655]
[1617554181181,0.10725655,57960.0,57959.0,0.57725655]
[1617554181381,0.10725655,57960.0,57959.0,0.37725655]
[1617554183385,0.22316655,57960.0,57959.0,0.27]
[1617554183587,3.61596655,57960.0,57959.0,0.27]
[1617554183785,3.61596655,57960.0,57940.0,0.27]
[1617554184186,3.61596655,57960.0,57959.0,0.27]
[1617554184386,3.6260519,57960.0,57941.0,0.01]
[1617554184785,3.6260519,57960.0,57959.0,0.27]
[1617554184985,3.6260519,57960.0,57942.0,0.01]
[1617554185186,3.91562973,57960.0,57942.0,0.01]
[1617554185386,3.80837318,57960.0,57959.0,0.27]
[1617554185587,0.41557318,57960.0,57944.0,0.10725655]
[1617554185787,0.41557318,57960.0,57952.0,3.1449]
[1617554186190,0.00509267,57957.0,57953.0,0.26]
[1617554186589,0.120994,57960.0,57953.0,0.26]
[1617554186790,0.005084,57960.0,57953.0,0.26]
[1617554187295,0.10725655,57954.0,57953.0,0.26]
[1617554189100,3.05185655,57954.0,57945.0,0.27]